bitfinex/quotes_BTCUSD_20220105
["timestamp","ask_amount","ask_price","bid_price","bid_amount"]
[1641393443206,0.24162287,46343.0,46342.0,0.68704]
[1641393445406,0.24162287,46343.0,46342.0,0.68904]
[1641393446063,0.7029718,46343.0,46342.0,0.68904]
[1641393446259,1.60319831,46343.0,46342.0,0.68904]
[1641393446458,1.70319831,46343.0,46342.0,0.48084]
[1641393446660,1.70319831,46343.0,46342.0,0.47684]
[1641393447062,1.43,46342.0,46337.0,0.0126613]
[1641393447261,2.23485,46338.0,46337.0,0.0126613]
[1641393447560,2.37805,46338.0,46337.0,6.13e-05]
[1641393447860,2.42805,46338.0,46337.0,6.13e-05]
[1641393448058,2.482023,46338.0,46337.0,6.13e-05]
[1641393448263,2.482023,46338.0,46322.0,0.107946]
[1641393448460,0.21223248,46323.0,46322.0,0.107946]
[1641393448661,0.25543248,46323.0,46322.0,0.107946]
[1641393448859,0.25543248,46323.0,46322.0,0.755576]
[1641393449312,0.25743248,46323.0,46322.0,0.769576]
[1641393450213,0.25543248,46323.0,46322.0,0.755576]
[1641393451015,0.25543248,46323.0,46322.0,0.77686057]
[1641393451216,0.25543248,46323.0,46322.0,0.78986057]
[1641393451415,0.0482,46323.0,46322.0,0.78986057]
[1641393451623,0.0482,46323.0,46322.0,0.83986057]
[1641393451624,0.005,46323.0,46322.0,0.83986057]
[1641393452617,0.61166504,46324.0,46322.0,0.82686057]
[1641393452816,0.61166504,46324.0,46322.0,0.88082457]
[1641393453052,0.61166504,46326.0,46322.0,0.88082457]
[1641393453258,0.61166504,46326.0,46324.0,0.053962]
[1641393453455,0.61166504,46326.0,46325.0,0.6476]
[1641393453652,0.61166504,46326.0,46325.0,0.6976]
[1641393453852,0.61166504,46326.0,46325.0,0.69625948]
[1641393454054,0.73075365,46328.0,46325.0,0.69625948]
[1641393454255,0.73075365,46328.0,46325.0,0.73942951]
[1641393454454,0.73075365,46328.0,46326.0,0.02128457]
[1641393454654,0.73189398,46328.0,46327.0,0.64757]
[1641393455255,0.76689398,46328.0,46327.0,0.65157]
[1641393455853,0.03614033,46328.0,46327.0,0.65157]
[1641393456061,1.2060789,46328.0,46327.0,0.65157]
[1641393456257,1.2492789,46328.0,46327.0,0.65157]
[1641393456459,1.7041289,46328.0,46327.0,0.65157]
[1641393456658,0.81658298,46328.0,46327.0,0.64757]
[1641393456906,1.0814591,46328.0,46327.0,0.64757]
[1641393457111,1.38716911,46328.0,46327.0,0.64757]
[1641393457405,1.0934591,46328.0,46327.0,0.66885457]
[1641393458108,0.9934591,46328.0,46327.0,0.66885457]
[1641393458507,0.9814591,46328.0,46327.0,0.66885457]
[1641393459308,0.99231877,46328.0,46327.0,0.66885457]
[1641393459508,1.36265634,46328.0,46327.0,0.66885457]
[1641393459709,1.28212938,46328.0,46327.0,0.66885457]
[1641393459907,1.01547459,46328.0,46327.0,0.66885457]
[1641393460110,1.09042203,46328.0,46327.0,0.66885457]
[1641393460556,1.07842203,46328.0,46327.0,0.66885457]
[1641393460956,1.02842203,46328.0,46327.0,0.66885457]
[1641393461260,0.98545003,46328.0,46327.0,0.66885457]
[1641393462458,1.03942203,46328.0,46327.0,0.66885457]
[1641393462660,1.02842203,46328.0,46327.0,0.66885457]
[1641393463262,0.108172,46328.0,46327.0,0.66885457]
[1641393463665,0.0542,46328.0,46327.0,0.66885457]
[1641393464503,0.0432,46328.0,46327.0,0.66885457]
[1641393465405,0.0592,46328.0,46327.0,0.66885457]
[1641393465606,0.016,46328.0,46327.0,0.71885457]
[1641393466512,0.00114079,46330.0,46327.0,0.71885457]
[1641393466706,0.00114079,46330.0,46327.0,0.77281657]
[1641393467304,0.03014079,46330.0,46327.0,0.77581657]
[1641393467906,0.03014079,46330.0,46328.0,0.053962]
[1641393468365,0.03014079,46330.0,46329.0,0.02128457]
[1641393468565,0.00114079,46330.0,46329.0,0.02128457]
[1641393469170,0.32720436,46333.0,46329.0,0.02128457]
[1641393469369,0.408818,46332.0,46330.0,0.053968]
[1641393469571,0.31951277,46331.0,46329.0,0.13121957]
[1641393469769,0.35485,46330.0,46329.0,0.13121957]
[1641393469970,0.71672572,46330.0,46329.0,0.13121957]
[1641393470167,0.85992572,46330.0,46329.0,0.13121957]
[1641393470572,0.85,46329.0,46327.0,0.64757]
[1641393470768,1.84289159,46328.0,46327.0,7e-05]
[1641393470970,2.43289159,46328.0,46327.0,7e-05]
[1641393471170,2.5579681,46328.0,46314.0,0.42]
[1641393471372,2.5579681,46328.0,46310.0,0.12061184]
[1641393471373,0.1,46316.0,46310.0,0.12061184]
[1641393471570,0.66574526,46315.0,46310.0,0.01263284]
[1641393472009,1.19,46311.0,46310.0,0.01263284]
[1641393472211,1.88353681,46311.0,46298.0,0.00120635]
[1641393472411,0.35485,46310.0,46303.0,0.108]
[1641393472608,0.0432,46309.0,46304.0,0.64789]
[1641393472808,0.054001,46307.0,46304.0,0.701891]
[1641393473007,0.0432,46306.0,46304.0,0.701891]
[1641393473409,0.3097064,46305.0,46304.0,0.701891]
[1641393473608,0.4529064,46305.0,46304.0,0.701891]
[1641393474008,0.1432,46305.0,46304.0,0.701891]
[1641393474808,0.0432,46305.0,46304.0,0.701891]
[1641393475109,0.0432,46305.0,46304.0,0.751891]
[1641393475307,0.0642,46305.0,46304.0,0.755891]
[1641393476557,0.0432,46305.0,46304.0,0.751891]
[1641393476758,0.0432,46305.0,46304.0,0.701891]
[1641393477159,0.0432,46305.0,46304.0,0.64789]
[1641393477357,0.0452,46305.0,46304.0,0.65989]
[1641393478260,0.5792,46305.0,46304.0,0.65989]
[1641393478458,0.58043716,46305.0,46304.0,0.65989]
[1641393478657,0.58043716,46305.0,46304.0,0.64789]
[1641393478658,0.67843716,46305.0,46304.0,0.64789]
[1641393479058,1.03328716,46305.0,46304.0,0.64789]
[1641393479315,1.77532869,46305.0,46304.0,0.64789]
[1641393479715,2.55452869,46305.0,46304.0,0.64789]
[1641393479918,1.82148716,46305.0,46304.0,0.64789]
[1641393480115,2.57148716,46305.0,46304.0,0.215727]
[1641393480312,2.57148716,46305.0,46304.0,0.131337]
[1641393480513,2.56248716,46305.0,46304.0,0.08022468]
[1641393480716,3.08667603,46305.0,46304.0,4.68e-06]
[1641393480917,3.08667603,46305.0,46296.0,0.01]
[1641393481115,1.94633861,46297.0,46296.0,0.01]
[1641393481314,2.34438861,46297.0,46296.0,0.01]
[1641393481514,2.44438861,46297.0,46296.0,0.01]
[1641393481713,1.35840808,46297.0,46296.0,0.01]
[1641393481914,1.30438861,46297.0,46296.0,0.01]
[1641393482118,2.84221735,46297.0,46296.0,0.01]
[1641393482814,2.4654053,46297.0,46296.0,0.01]
[1641393483456,2.4744053,46297.0,46296.0,0.01]
[1641393483957,2.47397376,46297.0,46296.0,0.01]
[1641393484166,1.94844782,46297.0,46296.0,0.01]
[1641393484358,1.35442682,46297.0,46296.0,0.01]
[1641393484763,1.12410585,46297.0,46296.0,0.01]
[1641393485363,1.13610585,46297.0,46296.0,0.01]
[1641393485964,1.11524404,46297.0,46296.0,0.01]
[1641393486363,0.51005,46297.0,46296.0,0.01]
[1641393486563,1.22410585,46297.0,46296.0,0.01]
[1641393487207,1.27811685,46297.0,46296.0,0.01]
[1641393487412,1.28911685,46297.0,46296.0,0.01]
[1641393487908,1.74551719,46297.0,46296.0,0.01]
[1641393488410,2.12235793,46297.0,46296.0,0.01]
[1641393488609,2.11135793,46297.0,46296.0,0.01]
[1641393488808,0.88714037,46297.0,46296.0,0.01]
[1641393489009,1.73385322,46297.0,46296.0,0.01]
[1641393489208,1.39925266,46297.0,46296.0,0.01]
[1641393489409,1.40825266,46297.0,46296.0,0.01]
[1641393489608,1.78572692,46297.0,46296.0,0.01]
[1641393489811,1.23318711,46297.0,46296.0,0.01]
[1641393490015,0.009,46297.0,46296.0,0.01]
[1641393490311,0.73518054,46297.0,46296.0,2.088]
[1641393490558,0.30325354,46297.0,46296.0,0.84839344]
[1641393490757,0.84721063,46299.0,46296.0,0.84839344]
[1641393490959,0.41526363,46299.0,46297.0,0.26511534]
[1641393491158,0.01263368,46302.0,46298.0,0.64798]
[1641393491358,0.01263368,46302.0,46300.0,0.38720977]
[1641393491559,0.01263368,46302.0,46301.0,0.64793]
[1641393492360,0.70642441,46304.0,46301.0,0.64793]
[1641393492562,0.60642441,46303.0,46301.0,0.64793]
[1641393493362,0.63642441,46303.0,46301.0,0.75592]
[1641393493561,0.63642441,46303.0,46302.0,0.09319558]
[1641393493762,0.03,46303.0,46302.0,0.09319558]
[1641393494706,0.70642441,46305.0,46303.0,0.161981]
[1641393494905,0.70642441,46305.0,46303.0,0.20517584]
[1641393495111,0.70642441,46305.0,46303.0,0.25517584]
[1641393495504,0.75142441,46305.0,46303.0,0.25517584]
[1641393496805,0.70642441,46305.0,46303.0,0.25517584]
[1641393497206,0.1,46305.0,46303.0,0.25517584]
[1641393497406,0.142,46305.0,46303.0,0.25517584]
[1641393497612,0.042,46305.0,46303.0,0.25517584]
[1641393498058,0.042,46305.0,46303.0,0.211981]
[1641393498856,0.042,46305.0,46303.0,0.161981]
[1641393498857,0.77034026,46305.0,46303.0,0.161981]
[1641393499056,0.87034026,46305.0,46303.0,0.161981]
[1641393499255,0.82834026,46305.0,46303.0,0.161981]
[1641393499457,0.72834026,46304.0,46303.0,0.161981]
[1641393499657,0.82834026,46304.0,46303.0,0.161981]
[1641393500056,0.1,46304.0,46303.0,0.161981]
[1641393500661,0.48024694,46304.0,46301.0,0.701925]
[1641393500862,1.88485,46302.0,46301.0,0.701925]
[1641393501060,2.56805,46302.0,46301.0,0.64793]
[1641393501259,2.57471933,46302.0,46301.0,0.64793]
[1641393501460,2.58371933,46302.0,46301.0,0.64793]
[1641393501906,3.73444046,46302.0,46301.0,0.64793]
[1641393502106,3.89649646,46302.0,46301.0,0.64793]
[1641393502512,1.78329646,46302.0,46301.0,0.64793]
[1641393502811,1.81620364,46302.0,46301.0,0.64793]
[1641393503407,1.82620364,46302.0,46301.0,0.64793]
[1641393504207,2.36620364,46302.0,46301.0,0.64793]
[1641393504412,2.36620364,46302.0,46301.0,0.215734]
[1641393504709,0.00467789,46301.0,46296.0,0.01]
[1641393504917,1.27,46296.0,46294.0,0.01263567]
[1641393505112,2.77984593,46295.0,46294.0,0.01263567]
[1641393505312,2.77984593,46295.0,46292.0,0.00022]
[1641393505313,0.385602,46293.0,46292.0,0.00022]
[1641393505583,2.01105556,46293.0,46290.0,0.00011]
[1641393505780,2.01105556,46293.0,46291.0,2e-05]
[1641393505781,2.37888757,46292.0,46291.0,2e-05]
[1641393505980,0.43,46291.0,46289.0,0.00033]
[1641393506182,1.42386065,46290.0,46288.0,0.00022]
[1641393506380,1.31667889,46289.0,46288.0,0.00022]
[1641393506581,1.61485,46288.0,46285.0,0.00022]
[1641393506781,1.32546252,46287.0,46285.0,0.00022]
[1641393506982,0.05404,46285.0,46282.0,0.00033]
[1641393507184,0.35485,46282.0,46279.0,0.00033]
[1641393507382,0.35485,46282.0,46275.0,0.00033]
[1641393507383,0.40531139,46279.0,46277.0,4e-05]
[1641393507581,0.40531139,46279.0,46275.0,0.00033]
[1641393507582,0.91,46277.0,46275.0,0.00033]
[1641393507781,1.39805,46277.0,46275.0,0.00033]
[1641393507985,1.49805,46277.0,46275.0,0.00033]
[1641393508981,1.03805,46277.0,46276.0,0.054595]
[1641393509181,2.57336684,46277.0,46276.0,0.054595]
[1641393509415,2.58236684,46277.0,46276.0,0.00055]
[1641393509816,1.89116945,46277.0,46276.0,0.00055]
[1641393510214,1.89116945,46277.0,46272.0,0.00044]
[1641393510215,1.19485,46276.0,46272.0,0.00044]
[1641393510415,1.19485,46276.0,46274.0,0.00289201]
[1641393510416,1.41805,46275.0,46274.0,0.00289201]
[1641393510617,1.03805,46275.0,46274.0,0.00289201]
[1641393511214,1.88188372,46275.0,46274.0,0.00289201]
[1641393511416,1.89088372,46275.0,46274.0,0.00289201]
[1641393511614,1.79088372,46275.0,46274.0,0.00289201]
[1641393511815,1.67069948,46275.0,46274.0,0.00289201]
[1641393512414,0.94705,46275.0,46274.0,0.00289201]
[1641393512614,0.39805,46275.0,46274.0,0.00289201]
[1641393512817,0.60349607,46276.0,46274.0,0.00289201]
[1641393513268,0.60349607,46280.0,46274.0,0.00289201]
[1641393513464,0.047,46276.0,46274.0,0.11094301]
[1641393513666,0.047,46276.0,46274.0,0.16496901]
[1641393513865,0.047,46276.0,46275.0,0.1]
[1641393514665,0.78176628,46281.0,46275.0,0.1]
[1641393514866,0.054027,46280.0,46277.0,0.345302]
[1641393515068,0.049027,46280.0,46277.0,0.054027]
[1641393515266,0.35485,46279.0,46277.0,0.054027]
[1641393516467,0.45485,46279.0,46277.0,0.054027]
[1641393517219,0.1,46279.0,46277.0,0.054027]
[1641393517417,0.11,46279.0,46277.0,0.054027]
[1641393517620,0.01,46279.0,46277.0,0.054027]
[1641393518819,0.70349607,46281.0,46277.0,0.054027]
[1641393519020,0.35485,46280.0,46277.0,0.108057]
[1641393519223,0.408878,46280.0,46277.0,0.108057]
[1641393519421,0.508878,46280.0,46277.0,0.108057]
[1641393519922,0.60349607,46278.0,46277.0,0.108057]
[1641393520123,0.60349607,46278.0,46277.0,0.05403]
[1641393520124,0.70349607,46278.0,46277.0,0.05403]
[1641393520326,0.60349607,46278.0,46277.0,0.05403]
[1641393521564,0.65349607,46278.0,46277.0,0.05403]
[1641393521766,0.05,46278.0,46277.0,0.05403]
[1641393522766,0.70349607,46282.0,46278.0,0.054021]
[1641393522964,0.70349607,46282.0,46280.0,0.054021]
[1641393522965,0.1,46282.0,46280.0,0.054021]
[1641393523563,0.024,46282.0,46280.0,0.054021]
[1641393524720,0.054022,46285.0,46280.0,0.054021]
[1641393524922,0.054022,46285.0,46282.0,0.054023]
[1641393525121,0.054022,46285.0,46282.0,0.108045]
[1641393525623,0.069022,46285.0,46282.0,0.108045]
[1641393526024,0.015,46285.0,46282.0,0.108045]
[1641393526829,0.60349607,46286.0,46284.0,0.1]
[1641393527027,0.32829607,46286.0,46285.0,1.42554232]
[1641393527225,0.32829607,46287.0,46285.0,1.42554232]
[1641393527426,0.028,46286.0,46285.0,2.12369232]
[1641393527725,0.72364948,46289.0,46287.0,0.0012617]
[1641393527926,0.72364948,46298.0,46296.0,0.32741205]
[1641393528163,0.72364948,46298.0,46296.0,0.37741205]
[1641393528763,0.73628496,46299.0,46296.0,0.37741205]
[1641393528964,0.73628496,46299.0,46296.0,0.43141305]
[1641393529162,0.73628496,46299.0,46296.0,0.054001]
[1641393529364,0.73628496,46299.0,46292.0,0.04320061]
[1641393529365,0.12065848,46299.0,46287.0,0.85683036]
[1641393529563,0.0468997,46299.0,46287.0,0.85683036]
[1641393529763,0.72364948,46298.0,46285.0,1.80925029]
[1641393530062,0.82364948,46298.0,46285.0,1.50498036]
[1641393530263,0.82364948,46298.0,46287.0,0.25917521]
[1641393530465,0.72364948,46295.0,46287.0,0.25917521]
[1641393530663,0.054016,46291.0,46287.0,0.25917521]
[1641393530864,0.054016,46291.0,46288.0,0.054016]
[1641393531167,0.054016,46291.0,46289.0,0.0012995]
[1641393531365,0.72364948,46294.0,46289.0,0.0012995]
[1641393531566,0.005,46291.0,46289.0,0.0012995]
[1641393531817,0.005,46291.0,46289.0,0.1093085]
[1641393532016,0.005,46291.0,46290.0,0.108011]
[1641393532616,0.005,46291.0,46289.0,0.108009]
[1641393532817,0.82364948,46296.0,46289.0,0.108009]
[1641393533618,0.054011,46294.0,46289.0,0.108009]
[1641393533818,0.77766048,46294.0,46289.0,0.108009]
[1641393534017,0.77766048,46294.0,46290.0,0.054012]
[1641393534222,0.154011,46294.0,46291.0,0.054013]
[1641393535420,0.065011,46294.0,46291.0,0.054013]
[1641393536372,0.67049974,46294.0,46291.0,0.054013]
[1641393536571,0.77049974,46294.0,46291.0,0.054013]
[1641393536776,0.75949974,46294.0,46291.0,0.108023]
[1641393536972,0.154011,46294.0,46291.0,0.108023]
[1641393537172,0.154011,46294.0,46291.0,0.054013]
[1641393537573,0.77049974,46294.0,46291.0,0.054013]
[1641393537772,0.67049974,46294.0,46291.0,0.054013]
[1641393537975,0.77049974,46294.0,46287.0,0.6144149]
[1641393538573,0.77049974,46294.0,46287.0,0.00242106]
[1641393538775,0.054015,46290.0,46287.0,0.00242106]
[1641393538975,0.054015,46290.0,46288.0,0.054014]
[1641393539176,0.70548874,46293.0,46288.0,0.054014]
[1641393539421,0.005,46290.0,46288.0,0.075014]
[1641393540217,0.005,46290.0,46288.0,0.11821953]
[1641393541323,0.1,46293.0,46288.0,0.70921337]
[1641393541521,0.1,46293.0,46288.0,0.74921337]
[1641393541721,0.70548874,46295.0,46289.0,0.72000784]
[1641393542022,0.70548874,46295.0,46291.0,0.054007]
[1641393542918,0.1,46295.0,46291.0,0.054007]
[1641393543167,0.70548874,46296.0,46292.0,0.054007]
[1641393543663,0.013,46295.0,46292.0,0.108015]
[1641393544668,0.06701,46295.0,46292.0,0.054007]
[1641393544863,0.06701,46295.0,46292.0,0.029007]
[1641393544864,0.05401,46295.0,46292.0,0.029007]
[1641393545463,0.07101,46295.0,46292.0,0.029007]
[1641393545867,0.67649874,46295.0,46292.0,0.029007]
[1641393546065,0.46288,46294.0,46292.0,0.029007]
[1641393546266,0.35485,46294.0,46292.0,0.029007]
[1641393546465,0.508864,46294.0,46292.0,0.029007]
[1641393546666,0.60548874,46293.0,46292.0,0.029007]
[1641393546916,0.96033874,46293.0,46291.0,0.054007]
[1641393547115,0.70548874,46293.0,46291.0,0.054007]
[1641393547518,0.113,46293.0,46291.0,0.054007]
[1641393548119,0.067014,46293.0,46291.0,0.054007]
[1641393548817,0.054014,46293.0,46291.0,0.054007]
[1641393549020,0.23951342,46297.0,46292.0,0.32810868]
[1641393549021,0.19631342,46297.0,46292.0,0.32810868]
[1641393549219,0.25032042,46297.0,46292.0,0.43611668]
[1641393549419,0.25032042,46297.0,46292.0,0.108008]
[1641393549619,0.30232042,46297.0,46292.0,0.108008]
[1641393550221,0.30232042,46297.0,46293.0,0.054004]
[1641393550577,0.40232042,46297.0,46293.0,0.054004]
[1641393550780,0.35032042,46297.0,46293.0,0.054004]
[1641393550977,0.054015,46295.0,46293.0,0.054004]
[1641393551575,0.064015,46295.0,46293.0,0.054004]
[1641393552777,0.054015,46295.0,46293.0,0.054004]
[1641393553578,0.064015,46295.0,46293.0,0.054004]
[1641393554824,0.054015,46295.0,46293.0,0.054004]
[1641393555524,0.39805,46294.0,46285.0,0.64815]
[1641393555725,0.054024,46290.0,46288.0,0.054023]
[1641393555924,0.054024,46290.0,46285.0,0.64815]
[1641393556124,0.0432,46289.0,46285.0,0.64815]
[1641393556923,0.0432,46289.0,46285.0,0.702175]
[1641393557124,0.054025,46287.0,46285.0,0.64815]
[1641393557325,0.0432,46286.0,46285.0,0.64815]
[1641393557630,0.36490415,46286.0,46285.0,0.64815]
[1641393558072,0.46490415,46286.0,46285.0,0.64815]
[1641393558472,0.81975415,46286.0,46285.0,0.64815]
[1641393558873,0.86975415,46286.0,46285.0,0.64815]
[1641393559575,0.87875415,46286.0,46285.0,0.64815]
[1641393560780,0.82655415,46286.0,46285.0,0.64815]
[1641393561678,0.83555415,46286.0,46285.0,0.64815]
[1641393562320,0.51385,46286.0,46285.0,0.64815]
[1641393562523,1.70055792,46286.0,46285.0,0.215848]
[1641393562726,1.35831482,46286.0,46285.0,0.215848]
[1641393562922,1.34931482,46286.0,46285.0,0.215848]
[1641393563120,0.74807772,46285.0,46283.0,0.00245153]
[1641393563321,0.902089,46284.0,46283.0,0.00245153]
[1641393563721,0.552089,46284.0,46283.0,0.00245153]
[1641393564021,0.552089,46284.0,46274.0,0.00044]
[1641393564225,0.24662811,46283.0,46274.0,0.00044]
[1641393564420,0.39805,46282.0,46274.0,0.00044]
[1641393564621,0.054037,46279.0,46274.0,0.00044]
[1641393564823,0.0432,46278.0,46276.0,0.054037]
[1641393565022,0.108074,46280.0,46276.0,0.054037]
[1641393565023,0.0432,46277.0,46276.0,0.054037]
[1641393565672,0.0522,46277.0,46276.0,0.054037]
[1641393566273,0.009,46277.0,46276.0,0.104037]
[1641393566472,0.009,46277.0,46276.0,0.14725671]
[1641393566874,0.01263785,46282.0,46277.0,0.054023]
[1641393567272,0.06665985,46282.0,46278.0,0.054023]
[1641393567472,0.06665985,46282.0,46279.0,0.04321657]
[1641393567673,0.08265985,46282.0,46279.0,0.04321657]
[1641393568078,0.08265985,46282.0,46280.0,0.29825075]
[1641393568079,0.02863785,46282.0,46280.0,0.29825075]
[1641393568276,0.016,46282.0,46280.0,0.29825075]
[1641393568674,0.016,46282.0,46281.0,0.95555328]
[1641393568874,0.60548874,46289.0,46286.0,0.25920854]
[1641393569322,0.01263773,46287.0,46286.0,0.30920854]
[1641393569521,0.01263773,46287.0,46286.0,0.05]
[1641393570325,0.054016,46288.0,46286.0,0.05]
[1641393570921,0.054016,46288.0,46286.0,0.04942492]
[1641393571123,0.054016,46288.0,46285.0,0.108031]
[1641393571522,0.35485,46287.0,46284.0,0.054027]
[1641393571921,0.054027,46286.0,46284.0,0.054027]
[1641393573173,0.35485,46285.0,46284.0,0.054027]
[1641393573570,0.45485,46285.0,46284.0,0.054027]
[1641393575070,0.45485,46285.0,46284.0,0.053454]
[1641393575674,0.46485,46285.0,46284.0,0.053454]
[1641393576915,0.46479,46285.0,46284.0,0.053454]
[1641393577318,0.45479,46285.0,46284.0,0.053454]
[1641393577522,0.46379,46285.0,46284.0,0.053454]
[1641393578918,0.45479,46285.0,46284.0,0.053454]
[1641393579520,0.46579,46285.0,46284.0,0.053454]
[1641393579921,0.111,46285.0,46284.0,0.053454]
[1641393580219,0.011,46285.0,46284.0,0.053454]
[1641393580874,0.054014,46289.0,46284.0,0.053454]
[1641393581071,0.054014,46289.0,46285.0,0.054012]
[1641393581272,0.054014,46289.0,46287.0,0.054014]
[1641393581672,0.094014,46289.0,46287.0,0.054014]
[1641393582972,0.054014,46289.0,46287.0,0.054014]
[1641393583673,0.071014,46289.0,46287.0,0.054014]
[1641393585322,0.354852,46288.0,46287.0,0.054014]
[1641393585520,0.454852,46288.0,46287.0,0.054014]
[1641393586127,0.504852,46288.0,46286.0,0.00242114]
[1641393586322,0.054027,46287.0,46286.0,0.00242114]
[1641393586623,0.408879,46287.0,46286.0,0.00242114]
[1641393587022,0.508879,46287.0,46286.0,0.00242114]
[1641393587524,0.86218552,46287.0,46286.0,0.00242114]
[1641393587722,0.56237855,46287.0,46286.0,0.00242114]
[1641393587923,0.054035,46278.0,46276.0,0.61199384]
[1641393588171,0.0432,46277.0,46276.0,0.61199384]
[1641393588571,0.0432,46277.0,46274.0,0.00044]
[1641393588970,0.0432,46277.0,46274.0,0.054474]
[1641393589574,0.0512,46277.0,46274.0,0.054474]
[1641393589772,0.054035,46276.0,46274.0,0.054474]
[1641393591572,0.060035,46276.0,46274.0,0.054474]
[1641393593020,0.054035,46276.0,46274.0,0.054474]
[1641393593622,0.062035,46276.0,46274.0,0.054474]
[1641393594026,0.062035,46276.0,46274.0,0.09229366]
[1641393594226,0.74422018,46275.0,46264.0,0.97334]
[1641393594427,0.74422018,46275.0,46266.0,1.62781536]
[1641393594428,0.18156995,46267.0,46266.0,1.62781536]
[1641393594627,0.7298457,46267.0,46266.0,1.62781536]
[1641393594825,0.28004426,46267.0,46266.0,1.62781536]
[1641393595027,0.43004426,46267.0,46266.0,0.64837]
[1641393595327,0.78489626,46267.0,46266.0,0.64837]
[1641393595575,0.79389626,46267.0,46266.0,0.64837]
[1641393596278,0.79266795,46267.0,46266.0,0.64837]
[1641393596476,1.34550432,46267.0,46266.0,0.64837]
[1641393596875,1.33650432,46267.0,46266.0,0.64837]
[1641393597176,0.73366795,46267.0,46266.0,0.64837]
[1641393597573,0.74166795,46267.0,46266.0,0.64837]
[1641393597775,0.74166795,46267.0,46266.0,0.6201705]
[1641393598177,0.74166795,46267.0,46266.0,0.61954013]
[1641393598376,0.74166795,46267.0,46266.0,0.61885613]
[1641393598576,0.74166795,46267.0,46266.0,0.57690976]
[1641393598978,0.73366795,46267.0,46266.0,0.57690976]
[1641393599724,0.74066795,46267.0,46266.0,0.57690976]
[1641393599926,0.74066795,46267.0,46266.0,0.55685167]
[1641393599927,1.07338065,46267.0,46266.0,0.55685167]
[1641393600128,1.07338065,46267.0,46266.0,0.55674167]
[1641393600129,1.25338065,46267.0,46266.0,0.55674167]
[1641393600328,0.92066795,46267.0,46266.0,0.12416167]
[1641393600526,0.92196086,46267.0,46266.0,0.12416167]
[1641393600929,0.354852,46266.0,46264.0,0.00286226]
[1641393601127,0.0432,46265.0,46264.0,0.00286226]
[1641393601328,0.398052,46265.0,46264.0,0.00286226]
[1641393601532,0.498052,46265.0,46264.0,0.00286226]
[1641393601728,0.508052,46265.0,46264.0,0.00286226]
[1641393601931,0.464852,46265.0,46264.0,0.00286226]
[1641393602728,1.18746275,46265.0,46264.0,0.00286226]
[1641393602929,1.17746275,46265.0,46264.0,0.00286226]
[1641393603772,0.6035518,46265.0,46264.0,0.00286226]
[1641393603971,1.048052,46265.0,46264.0,0.00286226]
[1641393604173,1.17936929,46265.0,46264.0,0.00044]
[1641393604774,1.28343329,46265.0,46263.0,0.00033]
[1641393605073,0.66672449,46264.0,46263.0,0.00033]
[1641393605272,0.354858,46263.0,46259.0,0.00044]
[1641393605474,0.398058,46262.0,46259.0,0.00044]
[1641393605672,0.78570674,46262.0,46259.0,0.00044]
[1641393606073,0.498058,46262.0,46259.0,0.00044]
[1641393606273,1.35865237,46262.0,46259.0,0.00044]
[1641393606474,0.354858,46259.0,46253.0,0.00044]
[1641393606673,0.398058,46258.0,46253.0,0.00044]
[1641393607134,0.498058,46258.0,46253.0,0.00044]
[1641393607731,0.509058,46258.0,46253.0,0.00044]
[1641393608632,0.409058,46258.0,46253.0,0.00044]
[1641393608832,0.409058,46258.0,46255.0,0.054499]
[1641393608833,0.011,46258.0,46255.0,0.054499]
[1641393609033,0.054068,46259.0,46257.0,0.05055]
[1641393609433,0.22,46262.0,46258.0,0.33240118]
[1641393609637,0.22,46262.0,46259.0,0.57694494]
[1641393609835,0.00125388,46276.0,46260.0,1.21]
[1641393610035,0.054037,46275.0,46261.0,0.43240118]
[1641393610234,0.108074,46280.0,46267.0,0.30546795]
[1641393610235,0.23945268,46279.0,46267.0,0.30546795]
[1641393610676,0.054035,46273.0,46267.0,0.35546795]
[1641393610877,0.054035,46273.0,46268.0,0.006338]
[1641393611475,0.054035,46273.0,46272.0,0.10807]
[1641393611676,0.057035,46273.0,46272.0,0.10807]
[1641393612675,0.057035,46273.0,46272.0,0.15807]
[1641393613077,0.054035,46273.0,46272.0,0.15807]
[1641393613278,0.054035,46273.0,46272.0,0.10807]
[1641393613675,0.063035,46273.0,46272.0,0.11507]
[1641393614078,0.283035,46273.0,46272.0,0.11507]
[1641393614924,0.274035,46273.0,46272.0,0.10807]
[1641393615722,0.283035,46273.0,46272.0,0.11507]
[1641393616923,0.274035,46273.0,46272.0,0.10807]
[1641393617125,0.672093,46273.0,46270.0,0.00242195]
[1641393617323,0.317235,46273.0,46270.0,0.00242195]
[1641393617526,0.417235,46273.0,46270.0,0.00242195]
[1641393617724,0.054039,46271.0,46270.0,0.00242195]
[1641393617925,0.104039,46271.0,46270.0,0.00242195]
[1641393618573,0.054039,46271.0,46270.0,0.05646295]
[1641393619173,0.054039,46271.0,46270.0,0.054041]
[1641393619773,0.054039,46271.0,46270.0,0.090041]
[1641393619774,0.055039,46271.0,46270.0,0.090041]
[1641393620179,0.055039,46271.0,46270.0,0.086]
[1641393620574,0.055039,46271.0,46270.0,0.036]
[1641393620975,0.054039,46271.0,46268.0,0.14187007]
[1641393621175,0.054039,46271.0,46268.0,0.104044]
[1641393621823,0.11508,46271.0,46268.0,0.063044]
[1641393622023,0.16508,46271.0,46268.0,0.063044]
[1641393623021,0.15808,46271.0,46268.0,0.054044]
[1641393623823,0.112039,46271.0,46268.0,0.064044]
[1641393624023,0.062039,46271.0,46268.0,0.064044]
[1641393625024,0.15808,46271.0,46268.0,0.054044]
[1641393625675,0.16908,46271.0,46268.0,0.055044]
[1641393626978,0.15808,46271.0,46268.0,0.054044]
[1641393627175,0.104039,46271.0,46268.0,0.054044]
[1641393627577,0.70330206,46271.0,46268.0,0.054044]
[1641393627777,0.77130206,46271.0,46268.0,0.054044]
[1641393628276,0.172039,46271.0,46268.0,0.054044]
[1641393629078,0.054039,46271.0,46269.0,0.03782767]
[1641393629734,0.008,46271.0,46270.0,0.31644502]